bitfinex/quotes_SOLUSD_20220228
["timestamp","ask_amount","ask_price","bid_price","bid_amount"]
[1646074642466,15.3037,96.859,96.73,104.0]
[1646074642667,15.3037,96.859,96.74,12.49]
[1646074642868,4.132,96.858,96.75,12.49]
[1646074643067,5.84062443,96.858,96.76,12.49]
[1646074643267,5.84062443,96.858,96.77,12.49]
[1646074643468,50.63189354,96.857,96.77,12.49]
[1646074643669,4.131,96.856,96.77,12.49]
[1646074643868,5.6339465,96.856,96.77,12.49]
[1646074644268,21.97256267,96.856,96.75,12.49]
[1646074644471,20.46961617,96.856,96.74,12.49]
[1646074644770,1.41482114,96.855,96.74,12.49]
[1646074645069,1.41482114,96.855,96.742,2.27363488]
[1646074645271,21.88443731,96.855,96.742,2.27363488]
[1646074645470,1.65268801,96.854,96.742,2.27363488]
[1646074646074,20.46961617,96.853,96.742,2.27363488]
[1646074646273,1.57299453,96.852,96.742,2.27363488]
[1646074646676,20.46961617,96.851,96.742,2.27363488]
[1646074646892,1.58072716,96.85,96.74,12.49]
[1646074647093,4.132,96.849,96.72,12.49]
[1646074647293,24.60161617,96.849,96.72,12.49]
[1646074647493,22.07618729,96.848,96.72,12.49]
[1646074647695,5.76962544,96.847,96.721,58.5901438]
[1646074647894,24.60161617,96.847,96.721,58.5901438]
[1646074648096,20.46961617,96.846,96.721,58.5901438]
[1646074648295,5.70249428,96.845,96.721,58.5901438]
[1646074648495,12.49,96.84,96.72,12.49]
[1646074648694,5.84585595,96.839,96.72,12.49]
[1646074648895,26.31547212,96.839,96.72,12.49]
[1646074649097,22.3358391,96.838,96.69,12.49]
[1646074649298,22.3358391,96.838,96.678,4.133]
[1646074649299,5.49812678,96.837,96.678,4.133]
[1646074649496,5.74130361,96.836,96.679,56.86145339]
[1646074649698,4.134,96.835,96.679,56.86145339]
[1646074649998,12.49,96.82,96.679,56.86145339]
[1646074650197,12.49,96.82,96.617,106.37607748]
[1646074650198,56.3886786,96.819,96.618,4.134]
[1646074650401,62.31,96.818,96.619,6.0]
[1646074650598,62.31,96.816,96.63,12.49]
[1646074650798,1.70984594,96.815,96.63,12.49]
[1646074651001,12.49,96.8,96.63,12.49]
[1646074651198,62.31,96.798,96.631,52.98466505]
[1646074651500,1.72926827,96.795,96.631,52.98466505]
[1646074651697,156.12,96.79,96.631,48.84966505]
[1646074651901,12.49,96.78,96.631,48.84966505]
[1646074652098,51.53341398,96.779,96.631,48.84966505]
[1646074652398,1.75822263,96.778,96.631,48.84966505]
[1646074652598,4.136,96.777,96.631,48.84966505]
[1646074652799,1.77161306,96.777,96.631,48.84966505]
[1646074652999,1.0247265,96.759,96.631,48.84966505]
[1646074653197,9.06429311,96.758,96.632,2.48164545]
[1646074653398,12.49,96.75,96.632,2.48164545]
[1646074653597,1.44299987,96.749,96.632,2.48164545]
[1646074653998,20.99900155,96.748,96.632,2.48164545]
[1646074654199,1.76074491,96.747,96.632,2.48164545]
[1646074654602,1.49782573,96.757,96.632,2.48164545]
[1646074654800,1.49782573,96.757,96.633,4.136]
[1646074656202,1.49782573,96.757,96.634,166.31]
[1646074656402,1.49782573,96.757,96.637,2.33864782]
[1646074656703,1.49782573,96.757,96.65,12.49]
[1646074656906,1.49782573,96.757,96.651,42.8199245]
[1646074657106,1.49782573,96.757,96.652,2.8659112]
[1646074657505,1.49782573,96.757,96.653,2.74678921]
[1646074657707,9.06429311,96.758,96.653,2.74678921]
[1646074657906,9.06429311,96.758,96.654,110.0]
[1646074658106,9.06429311,96.758,96.655,2.65967431]
[1646074658306,9.06429311,96.758,96.671,104.0]
[1646074658509,9.06429311,96.758,96.678,62.31]
[1646074658706,9.06429311,96.758,96.691,104.0]
[1646074658906,9.06429311,96.758,96.692,42.8199245]
[1646074659107,1.0247265,96.759,96.697,104.0]
[1646074659306,1.0247265,96.759,96.711,104.0]
[1646074659509,1.0247265,96.759,96.712,2.96073028]
[1646074660106,1.0247265,96.759,96.715,2.74241189]
[1646074660307,1.0247265,96.759,96.721,104.0]
[1646074660507,1.0247265,96.759,96.72,12.49]
[1646074660709,1.0247265,96.759,96.713,48.84966505]
[1646074661510,1.0247265,96.759,96.714,2.69561235]
[1646074661710,1.0247265,96.759,96.713,48.84966505]
[1646074663414,1.0247265,96.759,96.715,2.50637132]
[1646074663813,49.4824,96.832,96.73,104.0]
[1646074664014,49.4824,96.832,96.731,2.88418051]
[1646074664216,49.4824,96.832,96.73,12.49]
[1646074664416,1.48014526,96.83,96.732,41.795198]
[1646074664915,41.96008979,96.831,96.733,2.94009148]
[1646074665114,6.0,96.84,96.733,2.94009148]
[1646074665419,6.0,96.84,96.758,104.0]
[1646074665615,4.132,96.877,96.761,104.0]
[1646074665813,4.132,96.877,96.769,104.0]
[1646074666014,46.8511,96.878,96.781,104.0]
[1646074666214,45.81157479,96.877,96.783,104.0]
[1646074666413,45.81157479,96.877,96.784,2.2688013]
[1646074667218,45.81157479,96.877,96.786,62.31]
[1646074667416,45.81157479,96.877,96.791,104.0]
[1646074667615,45.81157479,96.877,96.799,104.0]
[1646074667818,45.81157479,96.877,96.801,104.0]
[1646074668018,45.81157479,96.877,96.802,2.90889059]
[1646074669723,23.8209,96.892,96.802,2.90889059]
[1646074669724,23.8209,96.892,96.802,65.21889059]
[1646074669919,0.7051349,96.886,96.809,104.0]
[1646074670220,0.7051349,96.886,96.812,2.41586399]
[1646074670621,0.7051349,96.886,96.814,166.31]
[1646074670819,0.7051349,96.886,96.816,62.31]
[1646074671022,0.7051349,96.886,96.817,2.48074042]
[1646074671220,0.7051349,96.886,96.82,12.49]
[1646074672720,0.7051349,96.886,96.815,48.0282062]
[1646074672921,0.7051349,96.886,96.79,12.49]
[1646074673143,0.7051349,96.886,96.768,2.90300925]
[1646074673321,0.7051349,96.886,96.78,12.49]
[1646074673921,0.7051349,96.886,96.781,53.27039026]
[1646074674120,0.7051349,96.886,96.782,3.07869501]
[1646074674520,0.7051349,96.886,96.781,53.27039026]
[1646074674521,20.99900155,96.885,96.781,53.27039026]
[1646074674721,12.49,96.88,96.781,53.27039026]
[1646074674925,6.22774332,96.879,96.781,53.27039026]
[1646074675523,2.09774332,96.879,96.781,53.27039026]
[1646074676927,20.99900155,96.878,96.781,53.27039026]
[1646074677125,1.80433654,96.877,96.781,53.27039026]
[1646074677527,0.58247456,96.879,96.781,53.27039026]
[1646074677728,20.99900155,96.876,96.781,53.27039026]
[1646074677926,1.48492265,96.875,96.781,53.27039026]
[1646074680647,1.48492265,96.875,96.75,3.11720041]
[1646074680830,1.6945454,96.873,96.75,2.63362905]
[1646074681033,12.49,96.87,96.75,2.63362905]
[1646074681229,1.42757489,96.869,96.75,15.12362905]
[1646074681528,1.42757489,96.869,96.751,51.7435964]
[1646074681728,1.42757489,96.869,96.752,2.40941551]
[1646074681929,5.77892252,96.876,96.752,106.40941551]
[1646074682128,5.77892252,96.876,96.755,62.31]
[1646074682329,24.4103,96.877,96.766,104.0]
[1646074682530,24.4103,96.877,96.781,104.0]
[1646074682732,24.4103,96.877,96.783,104.0]
[1646074682930,0.58247456,96.879,96.784,3.01216435]
[1646074683230,0.58247456,96.879,96.782,51.0178965]
[1646074684232,0.58247456,96.879,96.76,12.49]
[1646074684435,12.49,96.87,96.741,3.07092002]
[1646074684631,1.67227045,96.868,96.739,4.131]
[1646074684835,1.67227045,96.868,96.73,12.49]
[1646074685235,63.98227045,96.868,96.738,54.1044832]
[1646074685433,4.132,96.867,96.738,54.1044832]
[1646074685634,62.31,96.866,96.738,54.1044832]
[1646074685831,62.31,96.864,96.738,54.1044832]
[1646074686033,12.49,96.85,96.727,48.0941]
[1646074686234,5.89807005,96.849,96.71,12.49]
[1646074686434,12.49,96.84,96.704,2.74198649]
[1646074686634,1.50172821,96.839,96.704,2.74198649]
[1646074687038,1.39937521,96.837,96.706,2.59351175]
[1646074687234,1.39937521,96.837,96.707,4.133]
[1646074687435,12.49,96.83,96.706,2.59351175]
[1646074687636,5.72700759,96.829,96.706,2.59351175]
[1646074688037,5.72700759,96.829,96.71,12.49]
[1646074689957,5.72700759,96.829,96.705,55.00524747]
[1646074690257,25.29600914,96.829,96.705,55.00524747]
[1646074690461,1.86128412,96.828,96.705,55.00524747]
[1646074690959,1.65630615,96.826,96.705,55.00524747]
[1646074691156,63.96630615,96.826,96.689,2.53708692]
[1646074691357,64.16246121,96.824,96.689,2.53708692]
[1646074691557,1.0284122,96.72,96.67,12.49]
[1646074692160,5.96702959,96.719,96.671,45.43855349]
[1646074692359,5.96702959,96.719,96.672,2.83101511]
[1646074692563,5.96702959,96.719,96.663,46.8443]
[1646074692759,5.96702959,96.719,96.643,2.53605279]
[1646074693565,1.0284122,96.72,96.644,4.136]
[1646074693762,1.0284122,96.72,96.645,24.0921]
[1646074693960,1.0284122,96.72,96.646,2.84363176]
[1646074694660,42.09807552,96.719,96.647,46.91171129]
[1646074695260,1.0284122,96.72,96.648,106.5287102]
[1646074695464,1.0284122,96.72,96.649,2.39554718]
[1646074698163,1.0284122,96.72,96.648,103.90554718]
[1646074698963,1.0284122,96.72,96.648,104.0]
[1646074699965,1.0284122,96.72,96.647,46.91171129]
[1646074700164,1.0284122,96.72,96.648,104.0]
[1646074700568,1.0284122,96.72,96.647,46.91171129]
[1646074701769,1.0284122,96.658,96.647,46.91171129]
[1646074701969,0.0084122,96.658,96.648,0.07824022]
[1646074706077,0.0084122,96.658,96.588,23.7877]
[1646074706078,1.45146478,96.657,96.588,23.7877]
[1646074706980,15.0276347,96.656,96.589,50.3601595]
[1646074707283,1.61320718,96.655,96.589,50.3601595]
[1646074710383,1.61320718,96.655,96.54,36.1992]
[1646074710587,1.61320718,96.655,96.54,23.7092]
[1646074710785,23.79261488,96.654,96.54,23.7092]
[1646074710983,12.49,96.64,96.525,22.5258]
[1646074711183,1.5040275,96.639,96.525,22.5258]
[1646074711387,40.67750225,96.638,96.526,58.04556492]
[1646074711584,1.74219896,96.637,96.526,58.04556492]
[1646074711983,1.72024181,96.635,96.526,58.04556492]
[1646074712585,1.72024181,96.635,96.527,104.0]
[1646074712985,1.72024181,96.635,96.529,104.0]
[1646074713387,1.72024181,96.635,96.53,110.0]
[1646074713584,1.72024181,96.635,96.53,6.0]
[1646074714406,1.72024181,96.635,96.53,12.49]
[1646074714605,1.72024181,96.635,96.53,116.49]
[1646074714806,1.72024181,96.635,96.53,12.49]
[1646074715004,1.72024181,96.635,96.528,23.1427]
[1646074715407,23.79261488,96.634,96.528,23.1427]
[1646074715605,12.49,96.63,96.528,23.1427]
[1646074715804,1.72975368,96.629,96.528,23.1427]
[1646074716008,25.52236856,96.629,96.528,23.1427]
[1646074716206,25.32642144,96.628,96.528,23.1427]
[1646074716409,1.61729366,96.627,96.528,23.1427]
[1646074716806,1.92179911,96.626,96.528,23.1427]
[1646074717610,1.92179911,96.626,96.529,104.0]
[1646074717808,1.73649228,96.637,96.529,104.0]
[1646074718009,1.73649228,96.637,96.528,23.1427]
[1646074720412,25.52910716,96.637,96.528,23.1427]
[1646074720610,1.87883201,96.636,96.526,58.04556492]
[1646074720809,1.87883201,96.636,96.48,121.5627]
[1646074721011,27.93461488,96.635,96.492,48.6526]
[1646074721213,1.73945409,96.634,96.493,104.0]
[1646074721411,12.49,96.63,96.494,6.0]
[1646074721611,1.57289754,96.629,96.494,6.0]
[1646074721812,1.57289754,96.629,96.495,49.62361549]
[1646074722010,1.57289754,96.629,96.5,12.49]
[1646074722211,1.57289754,96.629,96.5,116.49]
[1646074722712,1.57289754,96.629,96.5,12.49]
[1646074722912,25.36551242,96.629,96.5,12.49]
[1646074723112,1.62107289,96.628,96.5,12.49]
[1646074723313,1.92956974,96.626,96.5,12.49]
[1646074723720,25.72218462,96.626,96.5,12.49]
[1646074723914,1.70115081,96.625,96.5,12.49]
[1646074724314,25.49376569,96.625,96.5,12.49]
[1646074724515,1.69209003,96.624,96.5,12.49]
[1646074724916,15.0276347,96.623,96.5,12.49]
[1646074725116,1.98603061,96.622,96.5,12.49]
[1646074725316,1.98603061,96.622,96.501,62.31]
[1646074725516,1.98603061,96.622,96.502,106.23098197]
[1646074725721,1.98603061,96.622,96.508,104.0]
[1646074725918,15.0276347,96.623,96.522,104.0]
[1646074726118,15.0276347,96.623,96.529,62.31]
[1646074726319,15.0276347,96.623,96.528,104.0]
[1646074726320,15.0276347,96.623,96.538,104.0]
[1646074726517,1.95162474,96.646,96.54,104.0]
[1646074726719,1.80873686,96.651,96.551,104.0]
[1646074727416,1.80873686,96.651,96.552,2.74678921]
[1646074727618,46.27483522,96.65,96.552,2.74678921]
[1646074728217,1.58560099,96.649,96.553,24.5785]
[1646074728416,1.58560099,96.649,96.554,41.02124756]
[1646074728820,1.58560099,96.649,96.555,24.3589]
[1646074729017,1.58560099,96.649,96.56,116.49]
[1646074729219,1.58560099,96.649,96.56,12.49]
[1646074729618,46.27483522,96.65,96.561,104.0]
[1646074730018,1.59357343,96.649,96.56,12.49]
[1646074730220,1.59357343,96.649,96.555,24.3589]
[1646074730819,1.59357343,96.649,96.556,104.0]
[1646074731020,1.59357343,96.649,96.555,24.3589]
[1646074731619,1.59357343,96.649,96.556,104.0]
[1646074731819,46.27483522,96.65,96.556,104.0]
[1646074732018,46.27483522,96.65,96.555,24.3589]
[1646074732620,46.27483522,96.65,96.556,104.0]
[1646074732821,46.27483522,96.65,96.56,116.49]
[1646074735121,48.09918449,96.65,96.56,116.49]
[1646074735621,1.51470949,96.649,96.56,12.49]
[1646074738323,23.088902,96.649,96.555,24.3589]
[1646074738522,1.74273655,96.648,96.555,24.3589]
[1646074739524,21.57419251,96.647,96.555,24.3589]
[1646074739824,1.47380354,96.646,96.555,24.3589]
[1646074740224,1.89993562,96.644,96.555,24.3589]
[1646074740624,1.84765236,96.642,96.555,24.3589]
[1646074741024,1.79725049,96.641,96.555,24.3589]
[1646074741827,1.83132058,96.639,96.555,24.3589]
[1646074742025,46.27483522,96.65,96.555,24.3589]
[1646074742026,1.65875766,96.649,96.555,24.3589]
[1646074742826,1.93111127,96.648,96.555,24.3589]
[1646074743226,1.88454245,96.646,96.555,24.3589]
[1646074749029,21.57419251,96.645,96.555,24.3589]
[1646074749230,1.68150061,96.644,96.555,24.3589]
[1646074749732,1.62439302,96.639,96.555,24.3589]
[1646074750128,23.19858553,96.639,96.555,24.3589]
[1646074750329,1.66210789,96.638,96.555,24.3589]
[1646074752135,23.2363004,96.638,96.555,24.3589]
[1646074752435,1.88393472,96.637,96.555,24.3589]
[1646074753335,1.57326116,96.649,96.555,24.3589]
[1646074754535,21.57419251,96.648,96.554,41.02124756]
[1646074754735,1.52228221,96.647,96.554,41.02124756]
[1646074755134,1.79564633,96.646,96.554,41.02124756]
[1646074755535,1.47757464,96.645,96.554,41.02124756]
[1646074755934,12.49,96.64,96.554,41.02124756]
[1646074756133,1.7918423,96.639,96.554,41.02124756]
[1646074757834,1.63775709,96.638,96.554,41.02124756]
[1646074758035,1.63775709,96.638,96.525,24.7253]
[1646074758036,63.94775709,96.638,96.525,24.7253]
[1646074758234,62.31,96.636,96.525,24.7253]
[1646074758434,1.78148789,96.635,96.525,24.7253]
[1646074758635,62.31,96.634,96.525,24.7253]
[1646074758835,12.49,96.62,96.525,24.7253]
[1646074759036,1.75845287,96.619,96.526,46.99359107]
[1646074759436,21.57419251,96.619,96.526,46.99359107]
[1646074759635,1.55124584,96.617,96.51,22.5992]
[1646074759836,1.8271447,96.615,96.51,22.5992]
[1646074760037,12.49,96.6,96.51,22.5992]
[1646074760239,1.96099625,96.599,96.51,22.5992]
[1646074760737,1.50706491,96.597,96.511,57.44631328]
[1646074761939,1.50706491,96.597,96.512,6.0]
[1646074762138,1.50706491,96.597,96.513,22.6047]
[1646074762337,1.98432672,96.615,96.513,38.79829266]
[1646074762741,1.98432672,96.615,96.514,16.19359266]
[1646074762938,47.85616672,96.614,96.514,16.19359266]
[1646074763165,1.92384043,96.613,96.514,16.19359266]
[1646074764665,1.92384043,96.613,96.515,6.0]
[1646074765062,1.42384043,96.613,96.516,16.19359266]
[1646074765463,1.42384043,96.613,96.517,6.0]
[1646074766064,1.42384043,96.613,96.518,16.19359266]
[1646074767768,1.86956173,96.611,96.518,16.19359266]
[1646074767966,1.86956173,96.611,96.514,16.19359266]
[1646074768166,21.57419251,96.61,96.514,16.19359266]
[1646074768367,1.75982616,96.609,96.514,16.19359266]
[1646074768767,21.57419251,96.608,96.514,16.19359266]
[1646074768968,1.68732426,96.607,96.514,16.19359266]
[1646074769368,21.57419251,96.606,96.514,16.19359266]
[1646074769569,1.63266734,96.605,96.513,22.6047]
[1646074770469,1.52065959,96.604,96.513,22.6047]
[1646074770770,1.79374273,96.599,96.513,22.6047]
[1646074771173,21.18419251,96.598,96.464,22.60825169]
[1646074771470,1.82627035,96.597,96.492,57.42754083]
[1646074771670,4.143,96.596,96.492,57.42754083]
[1646074771869,25.32719251,96.596,96.492,57.42754083]
[1646074772069,22.98689067,96.595,96.492,57.42754083]
[1646074772270,12.49,96.58,96.492,57.42754083]
[1646074772470,49.58013398,96.579,96.492,57.42754083]
[1646074772772,1.63942892,96.578,96.492,57.42754083]
[1646074773170,1.63461239,96.577,96.45,12.49]
[1646074773371,1.63461239,96.577,96.44,12.49]
[1646074773570,62.31,96.575,96.44,12.49]
[1646074773770,62.31,96.575,96.441,16.28106002]
[1646074773971,62.31,96.573,96.441,16.28106002]
[1646074774173,12.49,96.56,96.442,97.88130616]
[1646074774373,57.76423661,96.559,96.442,97.88130616]
[1646074774574,1.4862767,96.558,96.443,16.28106002]
[1646074774974,1.4862767,96.558,96.444,16.28106002]
[1646074775378,1.4862767,96.558,96.445,16.28106002]
[1646074775874,1.4862767,96.558,96.443,16.28106002]
[1646074776076,63.7962767,96.558,96.443,16.28106002]
[1646074776276,56.30467023,96.559,96.444,16.28106002]
[1646074776277,166.31,96.556,96.444,16.28106002]
[1646074776475,1.57347932,96.555,96.444,16.28106002]
[1646074776679,170.454,96.554,96.418,22.6398962]
[1646074776876,62.31,96.539,96.418,22.6398962]
[1646074777078,62.31,96.537,96.401,48.4773]
[1646074777276,1.56949998,96.536,96.401,48.4773]
[1646074777481,1.56949998,96.536,96.402,16.28404404]
[1646074777679,104.0,96.524,96.402,16.28404404]
[1646074777884,166.31,96.509,96.322,15.5406]
[1646074778079,168.61,96.51,96.313,48.1672]
[1646074778080,156.12,96.5,96.313,48.1672]
[1646074778280,166.31,96.489,96.314,23.2564]
[1646074778580,1.43559284,96.478,96.314,23.2564]
[1646074778779,1.555279,96.476,96.315,56.1817027]
[1646074778978,1.555279,96.476,96.316,2.62631221]
[1646074779179,62.31,96.474,96.32,116.49]
[1646074779380,12.49,96.46,96.322,104.0]
[1646074779589,1.39287769,96.458,96.323,65.33728178]
[1646074779781,1.39287769,96.458,96.326,2.61087149]
[1646074779981,1.39287769,96.458,96.341,104.0]
[1646074780181,1.39287769,96.458,96.343,104.0]
[1646074780384,1.39287769,96.458,96.345,106.85104635]
[1646074780581,1.39287769,96.458,96.344,48.5271]
[1646074780582,40.40952737,96.461,96.348,2.51722256]
[1646074780782,1.46862169,96.46,96.348,2.51722256]
[1646074781183,1.46862169,96.46,96.349,2.74678921]
[1646074781783,1.73412557,96.469,96.352,2.51523132]
[1646074781984,1.8109853,96.479,96.357,166.31]
[1646074782183,26.12715879,96.496,96.36,77.65389368]
[1646074782383,24.7692,96.496,96.367,104.0]
[1646074782583,24.7692,96.496,96.381,104.0]
[1646074782784,24.7692,96.496,96.384,2.45897685]
[1646074783086,24.7692,96.496,96.386,104.0]
[1646074783284,24.7692,96.496,96.387,2.65041508]
[1646074783583,24.7692,96.496,96.388,104.0]
[1646074783784,24.7692,96.496,96.389,2.7362432]
[1646074784183,4.147,96.508,96.39,104.0]
[1646074784387,4.147,96.508,96.401,166.31]
[1646074784583,25.5862678,96.542,96.402,2.9182422]
[1646074784784,25.5862678,96.542,96.403,166.31]
[1646074784983,4.147,96.556,96.404,2.43032749]
[1646074785185,39.10575608,96.541,96.405,166.31]
[1646074785384,39.10575608,96.541,96.406,2.38293208]
[1646074785586,39.10575608,96.541,96.421,166.31]
[1646074785784,39.10575608,96.541,96.423,166.31]
[1646074785985,39.10575608,96.541,96.424,2.76459978]
[1646074786386,25.5862678,96.54,96.425,166.31]
[1646074786586,25.5862678,96.54,96.426,2.69904315]
[1646074786787,25.5862678,96.54,96.431,104.0]
[1646074786984,25.5862678,96.54,96.432,2.67294986]
[1646074787385,25.5862678,96.54,96.434,62.31]
[1646074787585,4.144,96.582,96.448,62.31]
[1646074787786,1.84800268,96.588,96.461,104.0]
[1646074787986,1.84800268,96.588,96.471,104.0]
[1646074788189,1.84800268,96.588,96.472,2.74392455]
[1646074788387,47.6265481,96.587,96.473,155.12227901]
[1646074788586,1.49622033,96.586,96.473,157.86906822]
[1646074788786,47.6265481,96.587,96.474,2.45675356]
[1646074788988,47.6265481,96.587,96.475,104.0]
[1646074789189,47.6265481,96.587,96.476,2.40159071]
[1646074789388,47.6265481,96.587,96.48,12.49]
[1646074789596,22.67420073,96.586,96.48,12.49]
[1646074789789,1.54897522,96.585,96.48,12.49]
[1646074789990,22.76036476,96.585,96.48,12.49]
[1646074790189,23.02537796,96.584,96.48,12.49]
[1646074790490,22.70040327,96.583,96.473,51.12227901]
[1646074790692,12.49,96.58,96.473,51.12227901]
[1646074791089,21.21138954,96.579,96.473,51.12227901]
[1646074791388,1.35646885,96.578,96.473,51.12227901]
[1646074791791,21.21138954,96.577,96.473,51.12227901]
[1646074791990,1.43137301,96.576,96.473,51.12227901]
[1646074792391,21.21138954,96.575,96.473,51.12227901]
[1646074792691,1.36328608,96.574,96.473,51.12227901]
[1646074792890,12.49,96.57,96.473,51.12227901]
[1646074793091,9.80552725,96.569,96.473,51.12227901]
[1646074798027,8.07858885,96.569,96.473,51.12227901]
[1646074798625,8.07858885,96.569,96.474,6.0]
[1646074799929,21.21138954,96.568,96.474,6.0]
[1646074800331,1.58461082,96.567,96.474,6.0]
[1646074800530,1.58461082,96.567,96.473,51.12227901]
[1646074800933,8.07858885,96.569,96.473,51.12227901]
[1646074800934,1.81149163,96.565,96.473,51.12227901]
[1646074802035,48.16944934,96.549,96.473,51.12227901]
[1646074802232,1.36588516,96.548,96.473,51.12227901]
[1646074802432,1.48629871,96.547,96.473,51.12227901]
[1646074802633,22.69768825,96.547,96.473,51.12227901]
[1646074802832,22.72244554,96.546,96.473,51.12227901]
[1646074803033,1.81915989,96.545,96.473,51.12227901]
[1646074806743,12.49,96.57,96.473,51.12227901]
[1646074806943,1.68036487,96.569,96.474,22.9643]
[1646074807143,1.68036487,96.569,96.475,6.0]
[1646074807745,52.10722219,96.568,96.475,6.0]
[1646074808744,52.10722219,96.568,96.474,22.9643]
[1646074810147,23.03018379,96.567,96.474,22.9643]
[1646074810344,1.49471184,96.566,96.474,22.9643]
[1646074810547,22.70610138,96.566,96.474,22.9643]
[1646074810746,22.72621044,96.565,96.474,22.9643]
[1646074810945,12.49,96.56,96.474,22.9643]
[1646074811147,1.39489691,96.559,96.474,22.9643]
[1646074811346,22.60628645,96.559,96.462,24.9219]
[1646074811546,1.37302779,96.558,96.462,24.9219]
[1646074811746,1.54607543,96.557,96.462,24.9219]
[1646074811947,22.75746497,96.557,96.462,24.9219]
[1646074812146,22.71571146,96.556,96.462,24.9219]
[1646074812347,1.74015882,96.555,96.462,24.9219]
[1646074812549,1.74015882,96.555,96.463,60.85966524]
[1646074813949,1.74015882,96.555,96.464,23.249]
[1646074815951,21.21138954,96.554,96.464,23.249]
[1646074816151,1.71235306,96.553,96.464,23.249]
[1646074816851,22.9237426,96.553,96.464,23.249]
[1646074817054,22.9237426,96.553,96.419,104.0]
[1646074817055,12.49,96.55,96.398,2.344999]
[1646074817253,5.5273863,96.549,96.432,47.2041]
[1646074817452,26.73877584,96.549,96.432,47.2041]
[1646074817651,1.49423844,96.548,96.432,47.2041]
[1646074817851,85.01562798,96.548,96.432,47.2041]
[1646074818055,62.31,96.546,96.433,46.71943976]
[1646074818252,62.31,96.544,96.433,46.71943976]
[1646074818452,12.49,96.53,96.433,46.71943976]
[1646074818751,1.81737651,96.519,96.433,46.71943976]
[1646074820252,22.7568,96.528,96.433,46.71943976]
[1646074820553,1.58537796,96.527,96.433,46.71943976]
[1646074822353,1.75374952,96.525,96.433,46.71943976]
[1646074824353,62.31,96.524,96.433,46.71943976]
[1646074824553,12.49,96.51,96.433,46.71943976]
[1646074824756,1.51719164,96.509,96.433,46.71943976]
[1646074825556,1.51719164,96.509,96.387,48.1361]
[1646074825756,63.98608636,96.507,96.387,48.1361]
[1646074825957,62.31,96.505,96.387,48.1361]
[1646074826157,12.49,96.49,96.387,48.1361]
[1646074826359,1.60694562,96.488,96.387,48.1361]
[1646074826557,39.79658319,96.487,96.388,48.26854226]
[1646074826760,1.44067256,96.486,96.388,48.26854226]
[1646074828259,1.62745586,96.485,96.388,48.26854226]
[1646074828463,12.49,96.48,96.388,48.26854226]
[1646074828860,1.68185658,96.479,96.388,48.26854226]
[1646074829665,1.68185658,96.479,96.389,23.4144]
[1646074835485,12.49,96.48,96.389,23.4144]
[1646074835785,1.81445866,96.479,96.389,23.4144]
[1646074838889,1.81445866,96.479,96.388,48.26854226]
[1646074839491,1.81445866,96.479,96.389,24.4206]
[1646074839886,1.81445866,96.479,96.351,4.147]
[1646074839887,21.21138954,96.478,96.351,4.147]
[1646074840087,21.21138954,96.478,96.327,2.79890784]
[1646074840088,1.47420624,96.477,96.352,23.9912]
[1646074840290,62.31,96.476,96.352,23.9912]
[1646074840492,62.31,96.474,96.352,23.9912]
[1646074840689,12.49,96.46,96.352,23.9912]
[1646074840889,25.08113994,96.459,96.353,54.04040759]
[1646074841088,17.6544099,96.458,96.353,54.04040759]
[1646074841290,1.35389642,96.457,96.353,54.04040759]
[1646074847198,1.60771844,96.455,96.353,54.04040759]
[1646074847495,12.49,96.44,96.353,54.04040759]
[1646074847695,1.66695721,96.439,96.353,54.04040759]
[1646074849898,22.87834675,96.439,96.353,54.04040759]
[1646074850198,1.82256832,96.438,96.353,54.04040759]
[1646074850398,1.82256832,96.438,96.341,22.5723]
[1646074850600,1.87452297,96.435,96.341,22.5723]
[1646074850998,1.87297261,96.432,96.341,22.5723]
[1646074851197,12.49,96.42,96.341,22.5723]
[1646074851400,41.27905818,96.419,96.342,49.66467151]
[1646074851599,1.55571991,96.418,96.342,49.66467151]
[1646074852202,39.79658319,96.419,96.342,49.66467151]
[1646074855504,1.43251918,96.418,96.342,49.66467151]
[1646074856205,62.79330606,96.419,96.342,49.66467151]
[1646074857706,1.61985626,96.418,96.342,49.66467151]
[1646074858106,1.81503988,96.416,96.342,49.66467151]